bitfinex/quotes_ETHUSD_20220220
["timestamp","ask_amount","ask_price","bid_price","bid_amount"]
[1645333593946,0.00684463,2693.8,2693.2,11.31]
[1645333594193,0.00684463,2694.1,2693.9,1.07103054]
[1645333594394,0.00351059,2694.0,2693.9,1.07103054]
[1645333595193,0.00684463,2694.3,2693.9,1.07103054]
[1645333595494,0.00344684,2694.1,2693.9,1.07103054]
[1645333596394,0.00684463,2694.3,2694.0,4.53530752]
[1645333596596,0.00684463,2694.5,2694.0,4.53530752]
[1645333596796,0.00684463,2694.5,2693.9,1.99986054]
[1645333596797,0.00344683,2694.1,2693.9,1.07103054]
[1645333597696,1.30684463,2694.6,2693.9,1.07103054]
[1645333597945,0.00344683,2694.1,2693.9,1.07103054]
[1645333598445,0.00684463,2694.3,2693.5,4.53530752]
[1645333598446,0.96029146,2694.3,2693.5,4.53530752]
[1645333598642,0.68611616,2694.3,2693.3,3.4827]
[1645333598841,0.08611616,2694.3,2693.3,2.9467]
[1645333599042,0.4003,2694.5,2693.3,2.9467]
[1645333599242,0.1003,2694.5,2693.3,7.48200752]
[1645333599441,0.1003,2694.5,2694.0,0.83762508]
[1645333599642,0.6,2694.6,2694.0,0.83762508]
[1645333599942,4.53066843,2694.7,2694.0,0.83762508]
[1645333600341,1.0,2694.6,2694.0,0.83762508]
[1645333600742,0.92885,2694.5,2694.0,0.83762508]
[1645333601143,1.22885,2694.5,2694.0,0.83762508]
[1645333601342,1.85805,2694.4,2694.0,0.83762508]
[1645333601589,1.85805,2694.4,2693.5,4.53530752]
[1645333601790,2.7871845,2694.4,2693.3,2.9467]
[1645333601993,0.92916,2694.1,2693.3,2.9467]
[1645333602591,0.92916,2694.1,2693.8,0.96903262]
[1645333610795,0.0035116,2694.2,2693.8,0.96903262]
[1645333611193,0.00682347,2694.2,2693.8,0.96903262]
[1645333611400,0.00331187,2694.2,2693.8,0.96903262]
[1645333611995,0.00331187,2694.2,2693.9,4.53530752]
[1645333612193,0.00331187,2694.2,2693.9,5.46415752]
[1645333612594,0.00331191,2694.2,2693.9,5.46415752]
[1645333613043,0.00331191,2694.2,2693.9,4.53530752]
[1645333613446,0.92892,2694.4,2693.8,0.96903262]
[1645333613643,0.00315189,2694.2,2693.8,0.96903262]
[1645333614242,0.92901,2694.1,2693.8,0.96903262]
[1645333618201,0.92901,2694.1,2693.5,1.85778]
[1645333618403,1.22901,2694.1,2693.5,0.00208299]
[1645333618608,1.85836,2693.9,2693.5,0.00208299]
[1645333619401,1.02999947,2693.7,2693.5,0.00208299]
[1645333619600,0.92927,2693.6,2693.5,0.00208299]
[1645333620448,0.92927,2693.6,2693.5,0.00093139]
[1645333620748,0.92927,2693.6,2693.2,0.95285402]
[1645333623949,1.0,2693.8,2693.2,0.95285402]
[1645333624193,1.5068,2694.1,2693.3,50.0]
[1645333624194,0.60406409,2694.1,2693.3,50.0]
[1645333624400,3.4973,2694.2,2693.3,50.0]
[1645333624596,0.00351129,2694.0,2693.3,50.0024147]
[1645333624795,0.00351129,2694.0,2693.7,0.99932981]
[1645333624998,0.93260129,2694.0,2693.7,0.99932981]
[1645333625398,0.92909,2694.0,2693.7,0.99932981]
[1645333628249,0.92909,2694.0,2693.7,1.00175107]
[1645333628648,0.92909,2694.0,2693.7,0.00242126]
[1645333628849,0.92909,2694.0,2693.2,4.44425474]
[1645333629455,0.92909,2694.0,2693.7,0.00242126]
[1645333629651,0.92909,2694.0,2693.4,0.88307168]
[1645333629854,1.52909,2694.0,2693.0,1.2459]
[1645333630054,0.92924,2693.7,2692.9,13.46990663]
[1645333630352,1.92924,2693.7,2692.9,9.01497087]
[1645333630554,2.22924,2693.7,2692.9,2.70787087]
[1645333631255,0.92924,2693.7,2693.2,1.02526849]
[1645333631453,1.92924,2693.7,2693.2,1.02526849]
[1645333631703,0.92924,2693.7,2693.2,1.02526849]
[1645333631897,1.92924,2693.7,2693.2,1.02526849]
[1645333632101,0.92924,2693.7,2693.2,1.02526849]
[1645333632399,1.92924,2693.7,2693.2,1.00095849]
[1645333632597,0.92924,2693.7,2693.2,0.98601849]
[1645333632795,1.92924,2693.7,2693.2,0.98601849]
[1645333632997,1.92924,2693.7,2693.3,0.00240952]
[1645333632998,2.09710648,2693.7,2693.3,0.00240952]
[1645333633198,1.92924,2693.7,2693.2,0.94736801]
[1645333634402,2.96296447,2693.7,2693.2,0.94736801]
[1645333635456,3.26296447,2693.7,2693.2,0.94736801]
[1645333636258,1.87924,2693.7,2693.2,0.94736801]
[1645333637758,1.87924,2693.7,2693.2,0.94977164]
[1645333638459,1.82924,2693.7,2693.2,0.94977164]
[1645333638658,1.82924,2693.7,2693.2,0.94736801]
[1645333638858,2.12924,2693.7,2693.2,0.94736801]
[1645333639100,2.12924,2693.7,2693.2,0.94977164]
[1645333640006,2.12924,2693.7,2693.2,0.94736801]
[1645333640203,1.82924,2693.7,2693.2,0.94977164]
[1645333640400,2.12924,2693.7,2693.2,0.94977164]
[1645333641001,2.12924,2693.7,2693.2,0.94736801]
[1645333641201,1.82924,2693.7,2693.2,0.94736801]
[1645333641406,1.82924,2693.7,2693.2,1.87886164]
[1645333641801,0.82924,2693.7,2693.2,1.87886164]
[1645333642204,0.82924,2693.7,2693.2,1.87645801]
[1645333642507,0.82924,2693.7,2693.2,0.94977164]
[1645333643352,1.12924,2693.7,2693.2,0.94977164]
[1645333643551,1.12924,2693.7,2693.2,0.94736801]
[1645333643751,1.12924,2693.7,2693.2,0.94977164]
[1645333643955,0.82924,2693.7,2693.2,0.94977164]
[1645333644753,0.82924,2693.7,2693.2,0.94736801]
[1645333644955,0.82924,2693.7,2693.2,0.94977164]
[1645333645956,0.82924,2693.7,2693.2,0.94736801]
[1645333646255,0.82924,2693.7,2693.2,0.94977164]
[1645333647196,0.82924,2693.7,2693.2,0.94736801]
[1645333647401,0.82924,2693.7,2693.2,0.94977164]
[1645333648397,0.82924,2693.7,2693.2,0.94736801]
[1645333648597,0.82924,2693.7,2693.2,0.94977164]
[1645333649599,0.82924,2693.7,2693.2,0.94736801]
[1645333649798,0.82924,2693.7,2693.2,0.94977164]
[1645333650650,0.89730015,2693.6,2693.2,0.94736801]
[1645333651047,0.89730015,2693.6,2693.2,0.94977164]
[1645333651248,0.82924,2693.7,2693.2,0.94977164]
[1645333651848,0.82924,2693.7,2693.2,0.94736801]
[1645333652248,0.82924,2693.7,2693.2,0.94977164]
[1645333652649,0.82924,2693.7,2693.2,1.87885164]
[1645333653052,0.82924,2693.7,2693.2,0.94977164]
[1645333653251,0.82924,2693.7,2693.2,0.94736801]
[1645333653451,0.82924,2693.7,2693.2,0.94977164]
[1645333654397,0.82924,2693.7,2693.2,0.94736801]
[1645333654597,0.82924,2693.7,2693.2,0.75977164]
[1645333656797,0.82924,2693.7,2693.2,0.75736801]
[1645333656996,0.82924,2693.7,2693.2,0.75977164]
[1645333657847,0.82924,2693.7,2693.2,0.75736801]
[1645333658253,0.82924,2693.7,2693.2,0.75977164]
[1645333659149,0.82924,2693.7,2693.2,0.75736801]
[1645333659551,0.82924,2693.7,2693.2,0.75977164]
[1645333659952,0.82924,2693.7,2693.3,4.43461194]
[1645333660153,1.0,2693.8,2693.2,1.68885164]
[1645333660354,1.86187157,2693.9,2693.3,4.43461194]
[1645333660355,2.85836,2693.9,2693.3,4.43461194]
[1645333660552,1.0,2693.8,2693.3,4.43461194]
[1645333660759,1.00351162,2693.9,2693.2,1.68885164]
[1645333660954,0.00351162,2693.9,2693.7,1.07360771]
[1645333661356,0.92912,2693.8,2693.7,1.07360771]
[1645333661602,0.92912,2693.8,2693.1,4.43461194]
[1645333661802,0.92912,2693.8,2693.0,1.85812]
[1645333662003,0.92912,2693.8,2693.2,0.00240363]
[1645333662417,1.22912,2693.8,2693.2,0.00240363]
[1645333662618,1.94489616,2693.7,2693.2,0.00240363]
[1645333662808,1.94489616,2693.7,2692.7,0.18625154]
[1645333662809,0.92949,2693.3,2692.9,1.13557293]
[1645333663005,0.92949,2693.3,2692.7,0.18625154]
[1645333663205,0.92949,2693.3,2693.2,0.00240363]
[1645333663606,1.46549,2693.3,2693.2,0.00240363]
[1645333663803,2.46549,2693.3,2693.2,0.00240363]
[1645333664007,2.46549,2693.3,2692.7,0.00075154]
[1645333664209,1.05470836,2692.8,2692.7,0.00075154]
[1645333664405,1.98425836,2692.8,2692.7,0.00075154]
[1645333668352,0.92955,2692.8,2692.7,0.00075154]
[1645333669202,1.2472,2693.2,2692.7,0.00075154]
[1645333669514,1.0,2693.4,2693.1,0.8869307]
[1645333669702,1.0797622,2693.6,2693.1,0.8869307]
[1645333669901,1.8617387,2693.9,2693.1,0.8869307]
[1645333670099,1.85837,2693.9,2693.1,5.32154264]
[1645333670301,1.85837,2693.9,2693.1,0.8869307]
[1645333670503,1.86173932,2693.9,2693.2,0.0019297]
[1645333670702,2.86173932,2693.9,2693.2,0.0019297]
[1645333670902,1.92913,2693.8,2693.2,0.0019297]
[1645333671302,1.92913,2693.8,2693.1,0.8869307]
[1645333671502,1.92913,2693.8,2693.2,0.00196944]
[1645333672504,1.92913,2693.8,2693.1,0.8869307]
[1645333672849,1.92913,2693.8,2693.2,0.00196944]
[1645333673653,1.92913,2693.8,2693.1,0.8869307]
[1645333674049,1.92913,2693.8,2693.2,0.00196944]
[1645333674849,1.92913,2693.8,2693.1,0.8869307]
[1645333675152,1.92913,2693.8,2693.2,0.0019605]
[1645333676155,1.92913,2693.8,2693.1,0.0088912]
[1645333676350,1.92913,2693.8,2693.2,0.0019605]
[1645333677396,1.92913,2693.8,2693.1,0.0088912]
[1645333677597,1.93192223,2693.8,2693.1,0.0088912]
[1645333678599,1.92913,2693.8,2693.1,0.0088912]
[1645333678803,1.93250932,2693.8,2693.1,0.01084888]
[1645333679697,1.92913,2693.8,2693.1,0.0088912]
[1645333680197,1.93250932,2693.8,2693.1,0.01084888]
[1645333680448,1.93250932,2693.8,2693.1,0.00195768]
[1645333681046,1.92913,2693.8,2692.8,4.62011194]
[1645333681248,1.93250632,2693.8,2693.1,0.00195833]
[1645333682247,1.93250632,2693.8,2693.0,0.83962743]
[1645333682248,1.92913,2693.8,2693.0,0.83962743]
[1645333682448,1.92913,2693.8,2693.1,0.00195833]
[1645333682449,1.93250632,2693.8,2693.1,0.00195833]
[1645333682849,1.93250632,2693.8,2693.1,4.42321103]
[1645333683051,1.93250632,2693.8,2693.1,0.00195833]
[1645333683251,2.53250632,2693.8,2693.1,0.00195833]
[1645333683451,2.52913,2693.8,2693.0,0.83962743]
[1645333683650,0.92926,2693.6,2693.0,0.83962743]
[1645333684903,0.92926,2693.6,2693.1,0.00195833]
[1645333685801,1.22926,2693.6,2693.0,0.83962743]
[1645333686001,1.22926,2693.6,2693.1,0.00226933]
[1645333686403,2.22926,2693.6,2693.0,0.00189676]
[1645333686612,0.9293,2693.3,2692.7,1.85831]
[1645333687304,0.9293,2693.3,2692.6,4.4212527]
[1645333687504,2.09794218,2693.3,2692.6,5.49525682]
[1645333687965,3.09794218,2693.3,2692.6,5.49525682]
[1645333688966,3.09794218,2693.3,2692.3,0.18823532]
[1645333689178,3.09794218,2693.3,2692.3,0.00273532]
[1645333689179,0.92946,2693.0,2692.3,0.00273532]
[1645333689363,2.22946,2693.0,2692.3,0.00273532]
[1645333689759,2.22946,2693.0,2692.7,0.0023935]
[1645333689959,1.06629136,2692.9,2692.7,0.0023935]
[1645333690559,1.06629136,2692.9,2692.3,0.00273532]
[1645333691359,1.85915,2692.8,2692.3,0.00273532]
[1645333691597,1.85915,2692.8,2692.1,2.81203532]
[1645333691802,2.85915,2692.8,2692.1,2.81203532]
[1645333691998,1.85915,2692.8,2692.1,2.81203532]
[1645333692200,1.9295,2692.7,2692.1,2.81203532]
[1645333692999,1.9295,2692.7,2692.1,0.00273532]
[1645333694501,1.9295,2692.7,2692.3,0.0023879]
[1645333695452,1.9295,2692.7,2692.1,0.00273532]
[1645333695754,1.9295,2692.7,2692.4,0.00238782]
[1645333696651,0.9295,2692.7,2692.1,0.00273532]
[1645333696855,0.9295,2692.7,2692.4,0.00238777]
[1645333697951,0.9295,2692.7,2692.1,0.00273532]
[1645333698151,0.9295,2692.7,2692.4,0.00238777]
[1645333699202,0.9295,2692.7,2692.4,0.00211915]
[1645333699507,0.9295,2692.7,2692.0,0.30234802]
[1645333701206,2.22941,2693.0,2692.1,2.50832674]
[1645333701407,1.22941,2693.0,2692.1,0.92947]
[1645333702505,1.22941,2693.0,2692.6,1.09956053]
[1645333702710,0.92929,2693.3,2692.7,4.39300808]
[1645333702957,0.00350404,2693.5,2692.7,4.39300808]
[1645333703655,0.00350404,2693.5,2692.8,0.536]
[1645333703856,5.1264,2693.7,2693.3,1.00486479]
[1645333704056,2.93810094,2694.0,2693.3,1.00486479]
[1645333704057,2.93810094,2694.0,2693.3,1.81296479]
[1645333704356,0.00350461,2693.5,2693.3,1.81296479]
[1645333704955,0.92911,2693.8,2693.3,1.81296479]
[1645333705357,0.00350488,2693.5,2693.3,1.81296479]
[1645333705556,0.00350488,2693.5,2693.3,1.00486479]
[1645333706158,0.92911,2693.8,2693.3,1.00486479]
[1645333706656,0.00350488,2693.5,2693.3,1.00486479]
[1645333707052,0.00350488,2693.5,2693.0,6.25113808]
[1645333707254,0.93272488,2693.5,2693.0,1.85813]
[1645333707459,0.92922,2693.5,2693.0,1.85813]
[1645333707754,0.93272477,2693.5,2693.0,1.85813]
[1645333708553,0.93272477,2693.5,2693.1,1.00170919]
[1645333708754,0.92922,2693.5,2693.1,1.00170919]
[1645333708956,0.93272477,2693.5,2693.1,1.00170919]
[1645333709158,0.93272477,2693.5,2692.7,1.1884]
[1645333709357,0.93272477,2693.5,2692.7,0.3]
[1645333709556,0.93272477,2693.5,2692.8,0.92922]
[1645333709754,0.92922,2693.5,2692.8,0.92922]
[1645333710155,0.93272461,2693.5,2692.8,0.92922]
[1645333710355,0.93272461,2693.5,2693.0,1.07177431]
[1645333710955,0.92922,2693.5,2693.0,1.07177431]
[1645333711357,0.93272477,2693.5,2693.0,1.07177431]
[1645333711556,0.93272477,2693.5,2692.8,0.92922]
[1645333711757,0.93272477,2693.5,2692.6,1.8584]
[1645333712357,0.92922,2693.5,2692.6,1.8584]
[1645333712562,0.93272456,2693.5,2692.6,1.8584]
[1645333713361,0.85214236,2693.3,2692.6,3.00636397]
[1645333713559,0.92933,2693.2,2692.6,3.00636397]
[1645333714803,0.92933,2693.2,2692.6,1.8584]
[1645333718856,0.9327344,2693.5,2692.6,1.8584]
[1645333719455,1.92923,2693.5,2692.8,0.92921]
[1645333719655,0.93273456,2693.5,2692.8,0.92921]
[1645333719855,1.93273456,2693.5,2693.0,0.8819316]
[1645333720056,4.39300808,2693.4,2692.6,2.64012434]
[1645333720267,4.39300808,2693.4,2692.3,0.00238261]
[1645333720268,0.0124658,2692.7,2692.3,0.00238261]
[1645333720471,0.536,2692.6,2692.3,0.00238261]
[1645333720660,0.536,2692.6,2690.8,14.8322]
[1645333720661,9.39300808,2692.5,2690.8,14.8322]
[1645333720865,1.536,2692.4,2690.9,1.57937875]
[1645333721058,1.536,2692.4,2690.9,1.52937875]
[1645333721259,0.93012,2692.1,2690.7,4.38527733]
[1645333721460,2.7903039,2691.7,2691.1,0.87042412]
[1645333721711,0.93011,2691.5,2691.1,0.87042412]
[1645333721910,2.23011,2691.5,2691.1,0.87042412]
[1645333722108,2.23011,2691.5,2691.3,0.00185382]
[1645333723112,0.93007,2691.2,2690.6,2.7755]
[1645333723309,0.93007,2691.2,2690.3,12.066358]
[1645333723509,5.27971322,2691.2,2690.3,0.756358]
[1645333723711,0.93007,2691.2,2690.3,0.756358]
[1645333724108,0.93007,2691.2,2690.3,12.066358]
[1645333724323,1.0,2691.8,2690.9,0.87503104]
[1645333724522,0.08611616,2692.2,2690.9,12.18503104]
[1645333724711,4.34964322,2692.3,2690.9,12.78503104]
[1645333724909,1.2222,2692.4,2690.9,12.78503104]
[1645333725108,1.2222,2692.4,2691.0,0.0857]
[1645333725360,1.2222,2692.4,2691.6,1.18233112]
[1645333725561,1.2721,2692.6,2691.6,1.18233112]
[1645333725766,1.2721,2692.6,2691.6,12.49233112]
[1645333725767,0.92961,2692.3,2691.6,12.49233112]
[1645333725961,0.92961,2692.3,2691.6,12.49429596]
[1645333726163,1.8591,2692.6,2691.6,12.49429596]
[1645333726164,4.54575952,2693.0,2691.6,13.09429596]
[1645333726364,1.171,2692.9,2691.6,13.27999596]
[1645333726560,1.171,2692.9,2692.3,1.03539795]
[1645333726760,1.09631941,2693.0,2692.3,1.03539795]
[1645333727563,1.69631941,2693.0,2692.3,1.03539795]
[1645333727760,1.69631941,2693.0,2692.2,0.0019644]
[1645333727963,0.92941,2692.7,2691.9,0.92943]
[1645333728163,0.92941,2692.7,2692.2,0.0019644]
[1645333728366,0.92941,2692.7,2692.2,11.3119644]
[1645333728962,0.92941,2692.7,2692.6,0.98016072]
[1645333729213,0.92941,2692.7,2692.2,0.00193475]
[1645333730312,0.92941,2692.7,2691.7,0.44495697]
[1645333730512,0.92941,2692.7,2692.2,0.00193475]
[1645333730914,0.92941,2692.7,2691.7,0.17785792]
[1645333731312,0.92941,2692.7,2691.7,0.12785792]
[1645333731616,0.92941,2692.7,2691.8,0.86797724]
[1645333731617,0.92958,2692.3,2691.8,0.86797724]
[1645333732313,0.92958,2692.3,2691.7,0.12785792]
[1645333732955,0.92958,2692.3,2691.9,0.00194164]
[1645333733353,1.22958,2692.3,2691.9,0.00194164]
[1645333733560,0.92958,2692.3,2691.9,0.00194164]
[1645333733855,0.92958,2692.3,2691.7,0.12785792]
[1645333734056,0.92958,2692.3,2691.7,11.43785792]
[1645333734257,0.92958,2692.3,2692.0,0.00194156]
[1645333735158,0.92958,2692.3,2691.7,0.12785792]
[1645333735356,0.92958,2692.3,2692.0,0.00194153]
[1645333736257,0.92958,2692.3,2691.7,0.12785792]
[1645333736258,1.22958,2692.3,2691.7,0.12785792]
[1645333736457,1.85946,2692.2,2691.7,0.12785792]
[1645333736708,1.85946,2692.2,2692.0,0.00193519]
[1645333736908,2.85946,2692.2,2692.0,0.00193519]
[1645333737204,1.85946,2692.2,2692.0,0.00193519]
[1645333737403,2.85946,2692.2,2691.7,0.12785792]
[1645333737806,3.39546,2692.2,2692.0,0.00193522]
[1645333738012,15.5,2692.1,2690.3,0.756358]
[1645333738205,1.23008,2691.6,2690.4,2.7187]
[1645333738608,1.6,2691.6,2690.4,2.7187]
[1645333738808,0.6,2691.6,2690.4,2.7187]
[1645333739011,1.17043815,2691.3,2690.6,0.92455011]
[1645333739305,0.93007,2691.2,2690.6,0.92455011]
[1645333739711,1.93007,2691.2,2690.6,0.92455011]
[1645333740966,2.8602251,2691.2,2690.6,0.92455011]
[1645333741360,2.8602251,2691.2,2690.8,0.00193751]
[1645333742163,7.20986832,2691.2,2690.8,0.00193751]
[1645333742364,0.93025,2691.0,2690.3,0.756358]
[1645333742565,1.8604903,2691.0,2690.9,0.00193744]
[1645333742763,2.8604903,2691.0,2690.9,0.00193744]
[1645333743363,2.8604903,2691.0,2690.4,0.83999336]
[1645333743564,1.93025,2691.0,2690.4,0.83999336]
[1645333743771,1.93025,2691.0,2690.8,0.00208635]
[1645333744611,1.93025,2691.0,2690.4,0.83999336]
[1645333744612,1.93025,2691.0,2690.4,16.49963658]
[1645333744808,1.93025,2691.0,2690.4,12.14999336]
[1645333745107,1.93025,2691.0,2690.4,16.49963658]
[1645333745307,1.93025,2691.0,2690.4,5.18963658]
[1645333745506,1.93025,2691.0,2690.4,0.83999336]
[1645333745708,1.93025,2691.0,2690.4,5.18963658]
[1645333745910,1.93025,2691.0,2690.4,0.83999336]
[1645333747311,1.93025,2691.0,2690.6,0.00236363]
[1645333748353,0.93025,2691.0,2690.4,0.83999336]
[1645333748553,0.93025,2691.0,2690.7,0.00236354]
[1645333749453,0.93025,2691.0,2690.4,0.83999336]
[1645333749653,0.93025,2691.0,2690.9,0.97262352]
[1645333750854,0.93025,2691.0,2690.9,0.00262352]
[1645333751618,1.3692,2691.7,2690.9,0.00262352]
[1645333751619,1.0,2692.2,2691.1,11.31]
[1645333751814,7.5334,2692.3,2691.2,15.64762506]
[1645333752013,1.1871,2692.4,2691.2,5.75252506]
[1645333752211,1.1871,2692.4,2691.2,5.41312506]
[1645333752409,3.04635,2692.4,2691.9,1.02507202]
[1645333752611,3.04635,2692.4,2691.2,4.59822506]
[1645333752612,0.92968,2692.1,2691.2,4.59822506]
[1645333752910,0.92968,2692.1,2691.2,5.52792506]
[1645333753111,0.92968,2692.1,2691.2,16.83792506]
[1645333753513,0.92968,2692.1,2691.9,1.09103808]
[1645333754310,0.92968,2692.1,2691.2,12.5003]
[1645333755366,0.92968,2692.1,2691.6,1.04066296]
[1645333755566,0.92968,2692.1,2691.1,11.61]
[1645333755769,0.92968,2692.1,2691.1,11.91]
[1645333756166,0.92968,2692.1,2691.1,0.6]
[1645333756366,0.92968,2692.1,2691.1,11.91]
[1645333756568,0.92968,2692.1,2691.5,0.96138389]
[1645333758668,0.92968,2692.1,2691.1,0.6]
[1645333760505,0.92968,2692.1,2691.3,1.01596574]
[1645333760708,0.92968,2692.1,2691.4,0.00271065]
[1645333762108,0.92968,2692.1,2691.3,12.27867639]
[1645333763462,0.92968,2692.1,2691.3,0.96867639]
[1645333766712,0.92968,2692.1,2691.3,0.91867639]
[1645333769310,0.92968,2692.1,2691.1,0.6]
[1645333769718,0.92968,2692.1,2691.1,11.91]
[1645333770961,0.92968,2692.1,2691.4,12.34826214]
[1645333772663,0.1577,2692.6,2691.6,11.31]
[1645333772664,0.93295451,2692.5,2691.6,11.31]
[1645333772859,0.00339451,2692.5,2691.6,12.146]
[1645333773257,0.00339451,2692.5,2691.6,12.446]
[1645333773459,7.6951,2692.7,2692.3,1.17592234]
[1645333773660,8.28586,2692.9,2692.3,1.17592234]
[1645333773859,0.00339483,2692.5,2692.3,1.17592234]
[1645333774506,0.00339483,2692.5,2692.3,0.24592234]
[1645333774711,0.92942,2692.7,2692.3,0.24592234]
[1645333774910,0.00339479,2692.5,2691.8,11.31]
[1645333775509,0.93291479,2692.5,2691.8,11.31]
[1645333775909,0.92952,2692.5,2692.1,1.09741206]
[1645333776108,0.93291453,2692.5,2692.1,12.40741206]
[1645333776309,0.93291453,2692.5,2692.1,1.09741206]
[1645333777112,0.92952,2692.5,2692.1,1.09741206]
[1645333777310,0.93291468,2692.5,2692.1,1.09741206]
[1645333777966,0.93291468,2692.5,2692.1,12.40741206]
[1645333778168,0.00339468,2692.5,2692.1,12.40741206]
[1645333778366,0.92943,2692.7,2692.1,12.40741206]
[1645333778567,0.00339478,2692.5,2692.1,1.09741206]
[1645333779568,1.0,2692.8,2692.1,12.40741206]
[1645333779770,0.00339478,2692.5,2692.1,12.40741206]
[1645333779969,0.93291478,2692.5,2692.1,1.09741206]
[1645333780671,0.92952,2692.5,2692.1,1.09741206]
[1645333781071,0.93291478,2692.5,2691.7,2.9527]
[1645333781612,2.23291478,2692.5,2691.7,2.9527]
[1645333781812,6.55818264,2692.5,2691.7,2.9527]
[1645333782014,7.00998786,2692.5,2690.8,0.7217]
[1645333782211,0.91958733,2692.2,2691.3,10.17790723]
[1645333782411,0.92981,2692.0,2691.3,1.03490723]
[1645333783913,0.92981,2692.0,2691.2,11.31]
[1645333784314,0.92981,2692.0,2691.3,1.57925948]
[1645333784715,0.92981,2692.0,2691.2,11.31]
[1645333785467,0.92981,2692.0,2691.3,1.57926829]
[1645333786264,0.92981,2692.0,2691.3,12.88926829]
[1645333786465,0.92981,2692.0,2691.3,11.31]
[1645333787267,0.92981,2692.0,2691.2,11.31]
[1645333787666,0.92981,2692.0,2691.3,12.88925208]
[1645333787871,0.92981,2692.0,2691.3,11.31]
[1645333788068,0.92981,2692.0,2691.2,11.31]
[1645333788269,0.92981,2692.0,2691.3,12.88926446]
[1645333788468,0.92981,2692.0,2691.4,1.57926446]
[1645333789511,0.92981,2692.0,2691.3,11.31]
[1645333790413,0.92981,2692.0,2691.1,4.45208]
[1645333790414,0.92981,2692.0,2691.4,11.31]
[1645333791411,0.92981,2692.0,2691.2,11.31]
[1645333791610,0.92981,2692.0,2691.3,12.88928642]
[1645333791810,0.92981,2692.0,2691.3,11.31]
[1645333792612,0.92981,2692.0,2691.4,1.57929167]
[1645333793261,0.92981,2692.0,2691.4,12.88929167]
[1645333793463,0.92981,2692.0,2691.4,11.31]
[1645333794263,0.92981,2692.0,2691.2,11.31]
[1645333794464,0.92981,2692.0,2691.3,12.88926478]
[1645333794665,0.92981,2692.0,2691.4,1.57926478]
[1645333795065,0.92981,2692.0,2691.4,12.88926478]
[1645333795264,0.92981,2692.0,2691.5,1.57926478]
[1645333795465,0.92981,2692.0,2691.5,12.88926478]
[1645333795770,0.92981,2692.0,2691.6,1.57919542]
[1645333795966,0.92981,2692.0,2691.3,0.9297]
[1645333796167,0.92981,2692.0,2691.4,1.57924375]
[1645333797710,0.92981,2692.0,2691.4,12.88924375]
[1645333797912,0.92981,2692.0,2691.5,1.57924375]
[1645333798110,0.92981,2692.0,2691.5,12.88924375]
[1645333798318,0.92981,2692.0,2691.6,1.57924375]
[1645333798513,0.00124985,2691.6,2691.3,11.31]
[1645333798717,0.00124985,2691.6,2691.4,1.57920669]
[1645333800462,0.00124985,2691.6,2691.3,11.31]
[1645333800661,0.00124985,2691.6,2691.4,1.57931283]
[1645333801062,0.00124985,2691.6,2691.4,12.88931283]
[1645333801261,0.00124985,2691.6,2691.5,1.57931283]
[1645333801463,0.00124985,2691.6,2691.5,12.88931283]
[1645333802562,0.00124985,2691.6,2691.5,1.57931283]
[1645333803564,0.00124985,2691.6,2691.5,13.81673533]
[1645333804913,0.00124985,2691.6,2691.5,1.57832085]
[1645333806818,0.00124985,2691.6,2691.4,0.3]
[1645333807013,0.00124985,2691.6,2691.3,11.91]
[1645333807863,0.00124985,2691.6,2691.4,11.31]
[1645333809067,0.00124985,2691.6,2691.3,11.91]
[1645333809467,0.00124985,2691.6,2691.3,0.6]
[1645333809868,0.00124985,2691.6,2691.3,1.22971]
[1645333810069,0.00124985,2691.6,2691.4,11.31]
[1645333810271,0.00124985,2691.6,2691.4,11.61]
[1645333810472,1.1567,2692.4,2691.6,11.31374954]
[1645333810673,1.1567,2692.4,2691.8,11.31]
[1645333810872,3.1521,2692.7,2692.0,0.92947]
[1645333811072,0.00339392,2692.5,2692.4,1.15725539]
[1645333811913,0.92942,2692.8,2692.0,1.46547]
[1645333812315,0.00339487,2692.6,2692.0,1.46547]
[1645333812913,0.00339487,2692.6,2692.0,12.77547]
[1645333813113,0.0961163,2693.0,2692.0,12.77547]
[1645333813313,1.85901,2692.9,2692.1,1.0184176]
[1645333813513,0.00339476,2692.5,2691.9,11.31]
[1645333813716,0.92959,2692.4,2692.0,4.32526786]
[1645333814615,0.92959,2692.4,2691.9,11.31]
[1645333814913,0.92959,2692.4,2692.1,1.07974517]
[1645333815363,0.92959,2692.4,2691.9,0.3]
[1645333815564,0.92959,2692.4,2691.7,0.836]
[1645333815762,0.92959,2692.4,2691.7,12.146]
[1645333816161,0.92959,2692.4,2691.7,12.446]
[1645333816566,0.92959,2692.4,2692.0,1.16815459]
[1645333817365,0.92959,2692.4,2691.7,12.446]
[1645333817565,0.92959,2692.4,2691.7,12.146]
[1645333818368,0.92959,2692.4,2691.7,12.446]
[1645333818567,0.92959,2692.4,2691.8,11.31]
[1645333818980,7.32,2693.5,2692.1,0.93897935]
[1645333819232,2.72888256,2693.6,2692.5,5.0]
[1645333819424,0.00680356,2693.4,2692.7,11.31]
[1645333819619,0.00680356,2693.4,2692.9,11.31]
[1645333819820,2.72888256,2693.6,2693.1,11.31]
[1645333819821,0.00680356,2693.6,2693.1,11.31]
[1645333820023,0.92894,2694.3,2693.1,15.63526786]
[1645333820221,0.92894,2694.3,2693.6,0.90506014]
[1645333820423,0.92894,2694.3,2693.6,1.62076014]
[1645333820619,10.75778,2694.6,2693.6,14.16727014]
[1645333821019,0.92891,2694.2,2693.6,14.16727014]
[1645333821225,0.92891,2694.2,2693.6,13.23836014]
[1645333821621,0.92891,2694.2,2693.6,16.61348908]
[1645333822021,0.92891,2694.2,2693.6,16.91348908]
[1645333822221,1.58655773,2694.4,2693.8,11.31]
[1645333822421,1.58655773,2694.4,2694.0,11.31]
[1645333822865,0.92879,2694.4,2694.0,11.31]
[1645333823066,0.00352455,2694.3,2694.0,11.31]
[1645333823467,0.00352455,2694.3,2693.9,0.536]
[1645333823468,0.00352455,2694.3,2694.1,12.16588323]
[1645333824070,0.92879,2694.4,2694.1,12.16588323]
[1645333824269,0.00352455,2694.3,2694.1,12.16588323]
[1645333825271,1.87179607,2694.7,2694.1,12.16588323]
[1645333825272,0.92872,2694.6,2694.1,12.16588323]